Department Family,Entity,Date Paid,Expense Type,Expenses Area,Supplier Name,Transaction Reference,Total,VAT Registration Number
Department of Health,Imperial College Healthcare NHS Trust,05/03/2015,Acton Housing Association,Housing Deductions,A2dominion Housing Group Ltd,3097161,"165,117.80",Optional requirement only
Department of Health,Imperial College Healthcare NHS Trust,27/03/2015,Acton Housing Association,Housing Deductions,A2dominion Housing Group Ltd,3108429,"165,776.88",Optional requirement only
Department of Health,Imperial College Healthcare NHS Trust,31/03/2015,Clinical Managed Service Contr,Investigative Sciences & C S,Abbott Laboratories Ltd,3112443,"189,267.97",Optional requirement only
Department of Health,Imperial College Healthcare NHS Trust,31/03/2015,Clinical Managed Service Contr,Investigative Sciences & C S,Abbott Laboratories Ltd,3112444,"32,635.77",Optional requirement only
Department of Health,Imperial College Healthcare NHS Trust,12/03/2015,Consultancy Fees,Finance Directorate,Adviseinc Ltd,3098771,"31,080.00",Optional requirement only
Department of Health,Imperial College Healthcare NHS Trust,12/03/2015,Agency Senior Manager,Finance Directorate,Alan Goldsman Limited,3100741,"36,000.00",Optional requirement only
Department of Health,Imperial College Healthcare NHS Trust,18/03/2015,Chx Pharmacy Stock,Stock,Alcura Uk Ltd,3097448,"77,727.55",Optional requirement only
Department of Health,Imperial College Healthcare NHS Trust,18/03/2015,Chx Pharmacy Stock,Stock,Alcura Uk Ltd,3097452,"77,727.55",Optional requirement only
Department of Health,Imperial College Healthcare NHS Trust,03/03/2015,Contr Other External,Investigative Sciences & C S,Alliance Diagnostic Services Ltd,3095587,"34,740.00",Optional requirement only
Department of Health,Imperial College Healthcare NHS Trust,03/03/2015,Contr Other External,Investigative Sciences & C S,Alliance Diagnostic Services Ltd,3095588,"61,200.00",Optional requirement only
Department of Health,Imperial College Healthcare NHS Trust,27/03/2015,Contr Other External,Investigative Sciences & C S,Alliance Diagnostic Services Ltd,3109052,"45,900.00",Optional requirement only
Department of Health,Imperial College Healthcare NHS Trust,27/03/2015,Equip Maint Contracts,Investigative Sciences & C S,Asteral Mms Limited,3108700,"59,880.00",Optional requirement only
Department of Health,Imperial College Healthcare NHS Trust,24/03/2015,P & M-Additions-Purchased,Capital Summary,B Braun Avitum Ltd,3103852,"149,760.00",Optional requirement only
Department of Health,Imperial College Healthcare NHS Trust,24/03/2015,P & M-Additions-Purchased,Capital Summary,B Braun Avitum Ltd,3103853,"138,240.00",Optional requirement only
Department of Health,Imperial College Healthcare NHS Trust,24/03/2015,P & M-Additions-Purchased,Capital Summary,B Braun Avitum Ltd,3104451,"57,600.00",Optional requirement only
Department of Health,Imperial College Healthcare NHS Trust,24/03/2015,P & M-Additions-Purchased,Capital Summary,B Braun Avitum Ltd,3104452,"46,080.00",Optional requirement only
Department of Health,Imperial College Healthcare NHS Trust,10/03/2015,Dialysers,Division Of Medicine,Baxter Healthcare Ltd,3099225,"63,981.45",Optional requirement only
Department of Health,Imperial College Healthcare NHS Trust,12/03/2015,Jac - Stock,Stock,Bayer Plc,3094510,"77,611.20",Optional requirement only
Department of Health,Imperial College Healthcare NHS Trust,10/03/2015,Lab Equip Maint / Repairs,Investigative Sciences & C S,Beckman Coulter Uk Ltd,3092361,"48,604.49",Optional requirement only
Department of Health,Imperial College Healthcare NHS Trust,02/03/2015,Ext Contr Laundry,Directorate Of Strategy,Berendsen Uk Limited,3094052,"44,852.47",Optional requirement only
Department of Health,Imperial College Healthcare NHS Trust,17/03/2015,Legal Fees,Investigative Sciences & C S,Bird & Bird Llp,3102911,"39,376.80",Optional requirement only
Department of Health,Imperial College Healthcare NHS Trust,17/03/2015,Consultancy Fees,Director Of Operations,Blenkin Associates Ltd,3102323,"34,626.53",Optional requirement only
Department of Health,Imperial College Healthcare NHS Trust,17/03/2015,Srvcsrecd-Other Nhs,Finance Directorate,Calderstones Partnership-Nhs Foundation Trust,3102880,"34,215.00",Optional requirement only
Department of Health,Imperial College Healthcare NHS Trust,17/03/2015,Nhs Pay Recharge In: Other,"Surg, Canc & Cardiovasc Div",Central & North West London,3102927,"25,000.00",Optional requirement only
Department of Health,Imperial College Healthcare NHS Trust,19/03/2015,Other Research Exp - Non-Pay,Rd Medical Directorate,Central & North West London,3104130,"117,276.00",Optional requirement only
Department of Health,Imperial College Healthcare NHS Trust,17/03/2015,Computer Software/License,Information & Comms Technology,Cerner Uk Ltd,3102687,"138,000.00",Optional requirement only
Department of Health,Imperial College Healthcare NHS Trust,17/03/2015,Computer Software/License,Information & Comms Technology,Cerner Uk Ltd,3102690,"36,160.00",Optional requirement only
Department of Health,Imperial College Healthcare NHS Trust,17/03/2015,Computer Software/License,Information & Comms Technology,Cerner Uk Ltd,3102693,"36,160.00",Optional requirement only
Department of Health,Imperial College Healthcare NHS Trust,17/03/2015,Conferences And Seminars,Information & Comms Technology,Cerner Uk Ltd,3102698,"133,840.00",Optional requirement only
Department of Health,Imperial College Healthcare NHS Trust,17/03/2015,Computer Software/License,Information & Comms Technology,Cerner Uk Ltd,3102701,"106,639.32",Optional requirement only
Department of Health,Imperial College Healthcare NHS Trust,17/03/2015,Conferences And Seminars,Information & Comms Technology,Cerner Uk Ltd,3102701,"31,360.68",Optional requirement only
Department of Health,Imperial College Healthcare NHS Trust,24/03/2015,It Eqpt-Additions,Capital Summary,Cerner Uk Ltd,3106112,"895,198.80",Optional requirement only
Department of Health,Imperial College Healthcare NHS Trust,27/03/2015,Services Received - Nhsts,Division Of Women And Children,Chelsea And  Westminster Hospital Nhs,2987478,"26,447.00",Optional requirement only
Department of Health,Imperial College Healthcare NHS Trust,27/03/2015,Services Received - Nhsts,Division Of Women And Children,Chelsea And  Westminster Hospital Nhs,2987479,"86,231.00",Optional requirement only
Department of Health,Imperial College Healthcare NHS Trust,05/03/2015,Other Research Exp - Non-Pay,Rd Medical Directorate,Chelsea And  Westminster Hospital Nhs,3097844,"234,892.00",Optional requirement only
Department of Health,Imperial College Healthcare NHS Trust,10/03/2015,Other Research Exp - Non-Pay,Rd Medical Directorate,Chelsea And  Westminster Hospital Nhs,3098848,"206,748.00",Optional requirement only
Department of Health,Imperial College Healthcare NHS Trust,19/03/2015,Other Research Exp - Non-Pay,Rd Medical Directorate,Chelsea And  Westminster Hospital Nhs,3104356,"234,892.00",Optional requirement only
Department of Health,Imperial College Healthcare NHS Trust,26/03/2015,Srvcsrecd-Foundationtrust,Trust Block Income,Chelsea And  Westminster Hospital Nhs,3108028,"109,616.50",Optional requirement only
Department of Health,Imperial College Healthcare NHS Trust,26/03/2015,Srvcsrecd-Foundationtrust,Trust Block Income,Chelsea And  Westminster Hospital Nhs,3108029,"54,808.25",Optional requirement only
Department of Health,Imperial College Healthcare NHS Trust,26/03/2015,Srvcsrecd-Foundationtrust,Trust Block Income,Chelsea And  Westminster Hospital Nhs,3108030,"50,057.77",Optional requirement only
Department of Health,Imperial College Healthcare NHS Trust,26/03/2015,Srvcsrecd-Foundationtrust,Trust Block Income,Chelsea And  Westminster Hospital Nhs,3108031,"825,485.99",Optional requirement only
Department of Health,Imperial College Healthcare NHS Trust,26/03/2015,Srvcsrecd-Foundationtrust,Trust Block Income,Chelsea And  Westminster Hospital Nhs,3108032,"54,808.25",Optional requirement only
Department of Health,Imperial College Healthcare NHS Trust,26/03/2015,Srvcsrecd-Foundationtrust,Trust Block Income,Chelsea And  Westminster Hospital Nhs,3108033,"54,808.25",Optional requirement only
Department of Health,Imperial College Healthcare NHS Trust,26/03/2015,Srvcsrecd-Foundationtrust,Trust Block Income,Chelsea And  Westminster Hospital Nhs,3108036,"54,808.25",Optional requirement only
Department of Health,Imperial College Healthcare NHS Trust,26/03/2015,Srvcsrecd-Foundationtrust,Trust Block Income,Chelsea And  Westminster Hospital Nhs,3108039,"54,808.23",Optional requirement only
Department of Health,Imperial College Healthcare NHS Trust,26/03/2015,Srvcsrecd-Foundationtrust,Trust Block Income,Chelsea And  Westminster Hospital Nhs,3108040,"54,808.25",Optional requirement only
Department of Health,Imperial College Healthcare NHS Trust,03/03/2015,P & M-Additions-Purchased,Capital Summary,Chronos Vision Gmbh,3087383,"35,572.00",Optional requirement only
Department of Health,Imperial College Healthcare NHS Trust,03/03/2015,P & M-Additions-Purchased,Capital Summary,Chronos Vision Gmbh,3095484,"31,957.16",Optional requirement only
Department of Health,Imperial College Healthcare NHS Trust,12/03/2015,Childcare Voucher (Kids Unltd),Childcare Deductions,Computershare Voucher Services,3099119,"72,792.13",Optional requirement only
Department of Health,Imperial College Healthcare NHS Trust,24/03/2015,Gas,Directorate Of Strategy,Corona Energy,3104305,"88,715.51",Optional requirement only
Department of Health,Imperial College Healthcare NHS Trust,24/03/2015,Gas,Directorate Of Strategy,Corona Energy,3104306,"167,932.22",Optional requirement only
Department of Health,Imperial College Healthcare NHS Trust,24/03/2015,Gas,Directorate Of Strategy,Corona Energy,3104310,"98,419.08",Optional requirement only
Department of Health,Imperial College Healthcare NHS Trust,24/03/2015,Gas,Directorate Of Strategy,Corona Energy,3104314,"104,576.17",Optional requirement only
Department of Health,Imperial College Healthcare NHS Trust,24/03/2015,Equip Maint Contracts,Investigative Sciences & C S,Csc Computer Sciences Limited,3104389,"72,177.11",Optional requirement only
Department of Health,Imperial College Healthcare NHS Trust,27/03/2015,Computer Hardware Purch,Investigative Sciences & C S,Csc Computer Sciences Limited,3108680,"47,460.00",Optional requirement only
Department of Health,Imperial College Healthcare NHS Trust,12/03/2015,Chx Pharmacy Stock,Stock,Csl Behring Uk Ltd,3097499,"33,480.00",Optional requirement only
Department of Health,Imperial College Healthcare NHS Trust,24/03/2015,Jac - Stock,Stock,Csl Behring Uk Ltd,3102171,"34,340.00",Optional requirement only
Department of Health,Imperial College Healthcare NHS Trust,24/03/2015,Jac - Stock,Stock,Csl Behring Uk Ltd,3106455,"33,480.00",Optional requirement only
Department of Health,Imperial College Healthcare NHS Trust,27/03/2015,Med & Surg Maint Contract,"Surg, Canc & Cardiovasc Div",De Lage Landen Leasing Limited,3109223,"77,275.87",Optional requirement only
Department of Health,Imperial College Healthcare NHS Trust,19/03/2015,Consultancy Fees,Finance Directorate,Deloitte And Touche Llp,3093027,"46,176.00",Optional requirement only
Department of Health,Imperial College Healthcare NHS Trust,19/03/2015,Consultancy Fees,Finance Directorate,Deloitte And Touche Llp,3093028,"46,176.00",Optional requirement only
Department of Health,Imperial College Healthcare NHS Trust,17/03/2015,Consultancy Fees,Other Hq Departments,Dhl (Former Excel),3101987,"62,634.00",Optional requirement only
Department of Health,Imperial College Healthcare NHS Trust,17/03/2015,P & M-Additions-Purchased,Capital Summary,Draeger Medical Uk Ltd,3103062,"39,600.00",Optional requirement only
Department of Health,Imperial College Healthcare NHS Trust,05/03/2015,Electricity,Directorate Of Strategy,Edf Energy Customer Plc,3088279,"217,817.45",Optional requirement only
Department of Health,Imperial College Healthcare NHS Trust,05/03/2015,Electricity,Directorate Of Strategy,Edf Energy Customer Plc,3088281,"79,542.67",Optional requirement only
Department of Health,Imperial College Healthcare NHS Trust,05/03/2015,Electricity,Directorate Of Strategy,Edf Energy Customer Plc,3088282,"34,724.14",Optional requirement only
Department of Health,Imperial College Healthcare NHS Trust,05/03/2015,Electricity,Directorate Of Strategy,Edf Energy Customer Plc,3088290,"217,002.97",Optional requirement only
Department of Health,Imperial College Healthcare NHS Trust,24/03/2015,Electricity,Directorate Of Strategy,Edf Energy Customer Plc,3097186,"218,101.36",Optional requirement only
Department of Health,Imperial College Healthcare NHS Trust,19/03/2015,Electricity,Directorate Of Strategy,Edf Energy Customer Plc,3102618,"68,397.51",Optional requirement only
Department of Health,Imperial College Healthcare NHS Trust,19/03/2015,Electricity,Directorate Of Strategy,Edf Energy Customer Plc,3102621,"31,678.33",Optional requirement only
Department of Health,Imperial College Healthcare NHS Trust,03/03/2015,Hh Pharmacy Stock,Stock,Evolution Homecare Services Limited,3093389,"44,670.00",Optional requirement only
Department of Health,Imperial College Healthcare NHS Trust,24/03/2015,Hh Pharmacy Stock,Stock,Evolution Homecare Services Limited,3106065,"35,976.50",Optional requirement only
Department of Health,Imperial College Healthcare NHS Trust,17/03/2015,Consultancy Fees,Nrls,Experis Limted,3102411,"64,222.50",Optional requirement only
Department of Health,Imperial College Healthcare NHS Trust,19/03/2015,Buildings-Add(Prof Fee)-Purch,Capital Summary,Feilden Clegg Bardley Studios,3104125,"101,329.96",Optional requirement only
Department of Health,Imperial College Healthcare NHS Trust,19/03/2015,Buildings-Add(Prof Fee)-Purch,Capital Summary,Feilden Clegg Bardley Studios,3104127,"100,755.52",Optional requirement only
Department of Health,Imperial College Healthcare NHS Trust,27/03/2015,Buildings-Add(Prof Fee)-Purch,Capital Summary,Feilden Clegg Bardley Studios,3108627,"100,755.52",Optional requirement only
Department of Health,Imperial College Healthcare NHS Trust,24/03/2015,Postage & Carriage,Directorate Of Strategy,Francotyp-Postalia Uk Limited,3105434,"30,000.00",Optional requirement only
Department of Health,Imperial College Healthcare NHS Trust,12/03/2015,Med & Surg Maint Contract,"Surg, Canc & Cardiovasc Div",Gambro Lundia Ltd,3100801,"56,942.88",Optional requirement only
Department of Health,Imperial College Healthcare NHS Trust,19/03/2015,Med & Surg Equip General,Investigative Sciences & C S,Ge Medical Systems Limited,3104209,"284,910.64",Optional requirement only
Department of Health,Imperial College Healthcare NHS Trust,12/03/2015,Clinical Managed Service Contr,Investigative Sciences & C S,Genmed.Me Ltd,3088306,"49,527.80",Optional requirement only
Department of Health,Imperial College Healthcare NHS Trust,24/03/2015,Clinical Managed Service Contr,Investigative Sciences & C S,Genmed.Me Ltd,3093266,"136,866.28",Optional requirement only
Department of Health,Imperial College Healthcare NHS Trust,24/03/2015,Clinical Managed Service Contr,Investigative Sciences & C S,Genmed.Me Ltd,3093267,"136,866.28",Optional requirement only
Department of Health,Imperial College Healthcare NHS Trust,24/03/2015,Service Charge,Finance Directorate,Guys And St Thomas Nhs Foundation Trust,3106722,"25,000.00",Optional requirement only
Department of Health,Imperial College Healthcare NHS Trust,24/03/2015,Miscellaneous Expenditure,Division Of Medicine,Hayes Cottage Renal Unit Ltd,3106648,"68,244.00",Optional requirement only
Department of Health,Imperial College Healthcare NHS Trust,10/03/2015,Hh Pharmacy Stock,Stock,Healthcare At Home Ltd,3091180,"28,957.50",Optional requirement only
Department of Health,Imperial College Healthcare NHS Trust,03/03/2015,Hh Pharmacy Stock,Stock,Healthcare At Home Ltd,3091191,"39,819.82",Optional requirement only
Department of Health,Imperial College Healthcare NHS Trust,03/03/2015,Hh Pharmacy Stock,Stock,Healthcare At Home Ltd,3091195,"94,808.13",Optional requirement only
Department of Health,Imperial College Healthcare NHS Trust,03/03/2015,Hh Pharmacy Stock,Stock,Healthcare At Home Ltd,3091196,"70,791.89",Optional requirement only
Department of Health,Imperial College Healthcare NHS Trust,03/03/2015,Hh Pharmacy Stock,Stock,Healthcare At Home Ltd,3091198,"31,462.26",Optional requirement only
Department of Health,Imperial College Healthcare NHS Trust,03/03/2015,Hh Pharmacy Stock,Stock,Healthcare At Home Ltd,3091199,"117,478.47",Optional requirement only
Department of Health,Imperial College Healthcare NHS Trust,03/03/2015,Hh Pharmacy Stock,Stock,Healthcare At Home Ltd,3093360,"132,096.12",Optional requirement only
Department of Health,Imperial College Healthcare NHS Trust,03/03/2015,Hh Pharmacy Stock,Stock,Healthcare At Home Ltd,3093361,"137,572.87",Optional requirement only
Department of Health,Imperial College Healthcare NHS Trust,03/03/2015,Hh Pharmacy Stock,Stock,Healthcare At Home Ltd,3093362,"160,611.10",Optional requirement only
Department of Health,Imperial College Healthcare NHS Trust,03/03/2015,Hh Pharmacy Stock,Stock,Healthcare At Home Ltd,3093363,"150,235.06",Optional requirement only
Department of Health,Imperial College Healthcare NHS Trust,05/03/2015,Drugs Nhs,"Surg, Canc & Cardiovasc Div",Healthcare At Home Ltd,3096636,"160,718.30",Optional requirement only
Department of Health,Imperial College Healthcare NHS Trust,05/03/2015,Drugs Nhs,"Surg, Canc & Cardiovasc Div",Healthcare At Home Ltd,3096638,"100,958.20",Optional requirement only
Department of Health,Imperial College Healthcare NHS Trust,05/03/2015,Chx Pharmacy Stock,Stock,Healthcare At Home Ltd,3097058,"105,105.00",Optional requirement only
Department of Health,Imperial College Healthcare NHS Trust,24/03/2015,Drugs Nhs,"Surg, Canc & Cardiovasc Div",Healthcare At Home Ltd,3102114,"169,514.30",Optional requirement only
Department of Health,Imperial College Healthcare NHS Trust,27/03/2015,Jac - Stock,Stock,Healthcare At Home Ltd,3108951,"137,957.85",Optional requirement only
Department of Health,Imperial College Healthcare NHS Trust,27/03/2015,Jac - Stock,Stock,Healthcare At Home Ltd,3108952,"161,271.75",Optional requirement only
Department of Health,Imperial College Healthcare NHS Trust,27/03/2015,Jac - Stock,Stock,Healthcare At Home Ltd,3108958,"145,399.77",Optional requirement only
Department of Health,Imperial College Healthcare NHS Trust,27/03/2015,Jac - Stock,Stock,Healthcare At Home Ltd,3108967,"157,836.52",Optional requirement only
Department of Health,Imperial College Healthcare NHS Trust,27/03/2015,Jac - Stock,Stock,Healthcare At Home Ltd,3108968,"77,964.66",Optional requirement only
Department of Health,Imperial College Healthcare NHS Trust,31/03/2015,Jac - Stock,Stock,Healthcare At Home Ltd,3111835,"42,938.18",Optional requirement only
Department of Health,Imperial College Healthcare NHS Trust,31/03/2015,Jac - Stock,Stock,Healthcare At Home Ltd,3111837,"129,888.65",Optional requirement only
Department of Health,Imperial College Healthcare NHS Trust,31/03/2015,Jac - Stock,Stock,Healthcare At Home Ltd,3111838,"66,882.84",Optional requirement only
Department of Health,Imperial College Healthcare NHS Trust,31/03/2015,Jac - Stock,Stock,Healthcare At Home Ltd,3111839,"133,159.15",Optional requirement only
Department of Health,Imperial College Healthcare NHS Trust,24/03/2015,Jac - Stock,Stock,Healthcare Product Services Ltd,3106445,"48,816.00",Optional requirement only
Department of Health,Imperial College Healthcare NHS Trust,27/03/2015,Jac - Stock,Stock,Healthcare Product Services Ltd,3108236,"488,160.00",Optional requirement only
Department of Health,Imperial College Healthcare NHS Trust,27/03/2015,Other Research Exp - Non-Pay,Rd Medical Directorate,Hillingdon Hospital Nhs Trust,3108463,"115,175.00",Optional requirement only
Department of Health,Imperial College Healthcare NHS Trust,17/03/2015,Ext Contr Oth Hotel Srv,Directorate Of Strategy,I S S Mediclean Ltd,3102142,"245,181.60",Optional requirement only
Department of Health,Imperial College Healthcare NHS Trust,17/03/2015,Ext Contr Oth Hotel Srv,Directorate Of Strategy,I S S Mediclean Ltd,3102143,"48,364.45",Optional requirement only
Department of Health,Imperial College Healthcare NHS Trust,17/03/2015,Ext Contr Oth Hotel Srv,Directorate Of Strategy,I S S Mediclean Ltd,3102144,"245,181.60",Optional requirement only
Department of Health,Imperial College Healthcare NHS Trust,17/03/2015,Ext Contr Oth Hotel Srv,Directorate Of Strategy,I S S Mediclean Ltd,3102145,"245,181.60",Optional requirement only
Department of Health,Imperial College Healthcare NHS Trust,17/03/2015,Ext Contr Oth Hotel Srv,Directorate Of Strategy,I S S Mediclean Ltd,3102146,"1,215,559.39",Optional requirement only
Department of Health,Imperial College Healthcare NHS Trust,10/03/2015,Miscellaneous Expenditure,Medical Director Summary,Icnet Ltd,3099514,"49,748.80",Optional requirement only
Department of Health,Imperial College Healthcare NHS Trust,19/03/2015,Decontamination Services,Directorate Of Strategy,Ihss Ltd,3104655,"317,796.94",Optional requirement only
Department of Health,Imperial College Healthcare NHS Trust,03/03/2015,Dist Award - Local Cea,Division Of Medicine,Imperial College,3094502,"33,605.09",Optional requirement only
Department of Health,Imperial College Healthcare NHS Trust,03/03/2015,Dist Award - Nat Cea,Division Of Medicine,Imperial College,3094502,"62,132.12",Optional requirement only
Department of Health,Imperial College Healthcare NHS Trust,03/03/2015,Ic Pay Recharge In: Med,Division Of Medicine,Imperial College,3094502,"63,568.25",Optional requirement only
Department of Health,Imperial College Healthcare NHS Trust,03/03/2015,Dist Award - Local Cea,Division Of Women And Children,Imperial College,3094502,"26,784.11",Optional requirement only
Department of Health,Imperial College Healthcare NHS Trust,03/03/2015,Dist Award - Nat Cea,Division Of Women And Children,Imperial College,3094502,"27,882.62",Optional requirement only
Department of Health,Imperial College Healthcare NHS Trust,03/03/2015,Dist Award - Nat Cea,Investigative Sciences & C S,Imperial College,3094502,"25,297.36",Optional requirement only
Department of Health,Imperial College Healthcare NHS Trust,03/03/2015,Dist Award - Nat Cea,Medical Director Summary,Imperial College,3094502,"30,441.06",Optional requirement only
Department of Health,Imperial College Healthcare NHS Trust,03/03/2015,Dist Award - Local Cea,"Surg, Canc & Cardiovasc Div",Imperial College,3094502,"44,631.35",Optional requirement only
Department of Health,Imperial College Healthcare NHS Trust,03/03/2015,Dist Award - Nat Cea,"Surg, Canc & Cardiovasc Div",Imperial College,3094502,"61,972.92",Optional requirement only
Department of Health,Imperial College Healthcare NHS Trust,03/03/2015,Ic Pay Recharge In: Med,"Surg, Canc & Cardiovasc Div",Imperial College,3094502,"99,827.14",Optional requirement only
Department of Health,Imperial College Healthcare NHS Trust,03/03/2015,Ic Pay Recharge In: Med,Division Of Medicine,Imperial College,3094503,"28,843.37",Optional requirement only
Department of Health,Imperial College Healthcare NHS Trust,03/03/2015,Ic Pay Recharge In: Med,Division Of Medicine,Imperial College,3094504,"115,906.53",Optional requirement only
Department of Health,Imperial College Healthcare NHS Trust,03/03/2015,Ic Pay Recharge In: Med,Division Of Women And Children,Imperial College,3094504,"73,871.19",Optional requirement only
Department of Health,Imperial College Healthcare NHS Trust,03/03/2015,Ic Pay Recharge In: Med,Investigative Sciences & C S,Imperial College,3094504,"50,933.85",Optional requirement only
Department of Health,Imperial College Healthcare NHS Trust,03/03/2015,Ic Pay Recharge In: Med,"Surg, Canc & Cardiovasc Div",Imperial College,3094504,"249,088.58",Optional requirement only
Department of Health,Imperial College Healthcare NHS Trust,03/03/2015,Other Research Exp - Pay,Rd Medicine Division,Imperial College,3095380,"54,028.77",Optional requirement only
Department of Health,Imperial College Healthcare NHS Trust,10/03/2015,Laboratory Chemicals/ Reagents,Investigative Sciences & C S,Imperial College,3099179,"25,277.72",Optional requirement only
Department of Health,Imperial College Healthcare NHS Trust,24/03/2015,Other Research Exp - Pay,Rd Surgery & Cancer Division,Imperial College,3105627,"39,196.56",Optional requirement only
Department of Health,Imperial College Healthcare NHS Trust,24/03/2015,Senior Manager Band 8a,Rd Iscs Division,Imperial College,3105635,"29,953.89",Optional requirement only
Department of Health,Imperial College Healthcare NHS Trust,24/03/2015,Other Research Exp - Pay,Rd Medicine Division,Imperial College,3105648,"25,017.14",Optional requirement only
Department of Health,Imperial College Healthcare NHS Trust,24/03/2015,Ic Pay Recharge In: Med,Rd Iscs Division,Imperial College,3106649,"84,339.65",Optional requirement only
Department of Health,Imperial College Healthcare NHS Trust,24/03/2015,Other Research Exp - Pay,Rdwomen And Children Division,Imperial College,3106650,"78,819.10",Optional requirement only
Department of Health,Imperial College Healthcare NHS Trust,24/03/2015,Other Research Exp - Pay,Rd Surgery & Cancer Division,Imperial College,3106655,"94,747.12",Optional requirement only
Department of Health,Imperial College Healthcare NHS Trust,24/03/2015,Other Research Exp - Pay,Rd Iscs Division,Imperial College,3106659,"92,168.05",Optional requirement only
Department of Health,Imperial College Healthcare NHS Trust,24/03/2015,Other Research Exp - Pay,Rd Surgery & Cancer Division,Imperial College,3106660,"52,651.85",Optional requirement only
Department of Health,Imperial College Healthcare NHS Trust,24/03/2015,Other Research Exp - Pay,Rd Iscs Division,Imperial College,3106661,"60,435.18",Optional requirement only
Department of Health,Imperial College Healthcare NHS Trust,24/03/2015,Other Research Exp - Pay,Rdwomen And Children Division,Imperial College,3106662,"80,109.37",Optional requirement only
Department of Health,Imperial College Healthcare NHS Trust,24/03/2015,Other Research Exp - Pay,Rdwomen And Children Division,Imperial College,3106663,"82,126.58",Optional requirement only
Department of Health,Imperial College Healthcare NHS Trust,24/03/2015,Other Research Exp - Pay,Rd Medical Directorate,Imperial College,3106664,"61,823.23",Optional requirement only
Department of Health,Imperial College Healthcare NHS Trust,24/03/2015,Other Research Exp - Pay,Rd Iscs Division,Imperial College,3106665,"84,291.95",Optional requirement only
Department of Health,Imperial College Healthcare NHS Trust,24/03/2015,Other Research Exp - Non-Pay,Rd Medicine Division,Imperial College,3106666,"68,039.79",Optional requirement only
Department of Health,Imperial College Healthcare NHS Trust,24/03/2015,Other Research Exp - Pay,Rdwomen And Children Division,Imperial College,3106667,"52,095.31",Optional requirement only
Department of Health,Imperial College Healthcare NHS Trust,24/03/2015,Senior Manager Band 8a,Rd Medicine Division,Imperial College,3106668,"69,580.44",Optional requirement only
Department of Health,Imperial College Healthcare NHS Trust,24/03/2015,Other Research Exp - Non-Pay,Rd Surgery & Cancer Division,Imperial College,3106669,"76,186.90",Optional requirement only
Department of Health,Imperial College Healthcare NHS Trust,24/03/2015,Senior Manager Band 8a,Rd Medicine Division,Imperial College,3106671,"69,748.99",Optional requirement only
Department of Health,Imperial College Healthcare NHS Trust,24/03/2015,Other Research Exp - Pay,Rd Iscs Division,Imperial College,3106673,"88,405.40",Optional requirement only
Department of Health,Imperial College Healthcare NHS Trust,24/03/2015,Other Research Exp - Pay,Rd Medical Directorate,Imperial College,3106674,"63,889.52",Optional requirement only
Department of Health,Imperial College Healthcare NHS Trust,24/03/2015,Other Research Exp - Pay,Rd Iscs Division,Imperial College,3106675,"73,257.61",Optional requirement only
Department of Health,Imperial College Healthcare NHS Trust,24/03/2015,Other Research Exp - Pay,Rd Surgery & Cancer Division,Imperial College,3106676,"86,301.84",Optional requirement only
Department of Health,Imperial College Healthcare NHS Trust,24/03/2015,Other Research Exp - Pay,Rd Surgery & Cancer Division,Imperial College,3106677,"50,084.14",Optional requirement only
Department of Health,Imperial College Healthcare NHS Trust,24/03/2015,Other Research Exp - Pay,Rd Medicine Division,Imperial College,3106678,"60,655.70",Optional requirement only
Department of Health,Imperial College Healthcare NHS Trust,24/03/2015,Other Research Exp - Pay,Rd Medicine Division,Imperial College,3106679,"61,600.99",Optional requirement only
Department of Health,Imperial College Healthcare NHS Trust,24/03/2015,Other Research Exp - Pay,Rd Surgery & Cancer Division,Imperial College,3106680,"65,307.67",Optional requirement only
Department of Health,Imperial College Healthcare NHS Trust,24/03/2015,Other Research Exp - Pay,Rd Medicine Division,Imperial College,3106681,"50,632.29",Optional requirement only
Department of Health,Imperial College Healthcare NHS Trust,24/03/2015,Other Research Exp - Pay,Rd Medical Directorate,Imperial College,3106682,"61,156.20",Optional requirement only
Department of Health,Imperial College Healthcare NHS Trust,24/03/2015,Other Research Exp - Pay,Rd Medicine Division,Imperial College,3106684,"70,106.56",Optional requirement only
Department of Health,Imperial College Healthcare NHS Trust,24/03/2015,Senior Manager Band 8a,Rd Medicine Division,Imperial College,3106685,"67,989.15",Optional requirement only
Department of Health,Imperial College Healthcare NHS Trust,24/03/2015,Other Research Exp - Pay,Rd Iscs Division,Imperial College,3106686,"60,837.60",Optional requirement only
Department of Health,Imperial College Healthcare NHS Trust,24/03/2015,Other Research Exp - Pay,Rd Medical Directorate,Imperial College,3106687,"77,262.85",Optional requirement only
Department of Health,Imperial College Healthcare NHS Trust,24/03/2015,Training Expenses,Medical Director Summary,Imperial College,3106901,"61,500.00",Optional requirement only
Department of Health,Imperial College Healthcare NHS Trust,27/03/2015,Other Research Exp - Pay,Rd Medicine Division,Imperial College,3108041,"30,637.94",Optional requirement only
Department of Health,Imperial College Healthcare NHS Trust,27/03/2015,Other Research Exp - Non-Pay,Rd Surgery & Cancer Division,Imperial College,3108044,"37,077.00",Optional requirement only
Department of Health,Imperial College Healthcare NHS Trust,27/03/2015,Other Research Exp - Pay,Rd Medical Directorate,Imperial College,3108045,"316,934.77",Optional requirement only
Department of Health,Imperial College Healthcare NHS Trust,27/03/2015,Other Research Exp - Pay,Rd Surgery & Cancer Division,Imperial College,3108046,"126,082.01",Optional requirement only
Department of Health,Imperial College Healthcare NHS Trust,27/03/2015,Services Received - Nhsts,Rd Medical Directorate,Imperial College,3108047,"324,860.09",Optional requirement only
Department of Health,Imperial College Healthcare NHS Trust,27/03/2015,Other Research Exp - Non-Pay,Rd Iscs Division,Imperial College,3108049,"215,785.34",Optional requirement only
Department of Health,Imperial College Healthcare NHS Trust,27/03/2015,Senior Manager Band 8a,Rdwomen And Children Division,Imperial College,3108050,"57,377.67",Optional requirement only
Department of Health,Imperial College Healthcare NHS Trust,27/03/2015,Other Research Exp - Non-Pay,Rd Medical Directorate,Imperial College,3108051,"31,896.30",Optional requirement only
Department of Health,Imperial College Healthcare NHS Trust,27/03/2015,Other Research Exp - Pay,Rd Medical Directorate,Imperial College,3108052,"382,836.51",Optional requirement only
Department of Health,Imperial College Healthcare NHS Trust,27/03/2015,Other Research Exp - Pay,Rd Iscs Division,Imperial College,3108053,"181,847.38",Optional requirement only
Department of Health,Imperial College Healthcare NHS Trust,27/03/2015,Other Research Exp - Pay,Rd Iscs Division,Imperial College,3108055,"163,213.72",Optional requirement only
Department of Health,Imperial College Healthcare NHS Trust,19/03/2015,Med & Surg Maint Contract,"Surg, Canc & Cardiovasc Div",Intuitive Surgical Sarl,3103936,"140,000.00",Optional requirement only
Department of Health,Imperial College Healthcare NHS Trust,24/03/2015,Buildings-Additions-Purchased,Capital Summary,J.C. Watson Refrigeration,3105652,"160,416.00",Optional requirement only
Department of Health,Imperial College Healthcare NHS Trust,27/03/2015,Buildings-Additions-Purchased,Capital Summary,J.C. Watson Refrigeration,3108073,"137,717.40",Optional requirement only
Department of Health,Imperial College Healthcare NHS Trust,19/03/2015,Hh Pharmacy Stock,Stock,Janssen-Cilag Ltd,3093395,"36,594.24",Optional requirement only
Department of Health,Imperial College Healthcare NHS Trust,10/03/2015,It Eqpt-Additions,Capital Summary,Kelway (Uk) Ltd,3085660,"65,130.48",Optional requirement only
Department of Health,Imperial College Healthcare NHS Trust,24/03/2015,It Eqpt-Additions,Capital Summary,Kelway (Uk) Ltd,3099369,"104,185.86",Optional requirement only
Department of Health,Imperial College Healthcare NHS Trust,19/03/2015,Buildings-Additions-Purchased,Capital Summary,Leemoll Services Ltd,3104667,"53,010.00",Optional requirement only
Department of Health,Imperial College Healthcare NHS Trust,24/03/2015,Med & Surg Equip General,Capital Summary,Leica Microsystems (Uk) Ltd,3106306,"141,305.89",Optional requirement only
Department of Health,Imperial College Healthcare NHS Trust,27/03/2015,Rent,Ravenscourt Directorate,Les Geonnais Limited,3108715,"1,395,000.00",Optional requirement only
Department of Health,Imperial College Healthcare NHS Trust,10/03/2015,Computer Software/License,Information & Comms Technology,Lightspeed Systems Europe Ltd,3099397,"40,800.00",Optional requirement only
Department of Health,Imperial College Healthcare NHS Trust,01/03/2015,Drugs Nhs,Investigative Sciences & C S,Lloyds Retail Chemists Ltd,3093147,"2,372,827.74",Optional requirement only
Department of Health,Imperial College Healthcare NHS Trust,01/03/2015,Drugs Nhs,Investigative Sciences & C S,Lloyds Retail Chemists Ltd,3094977,"2,596,609.20",Optional requirement only
Department of Health,Imperial College Healthcare NHS Trust,01/03/2015,Drugs Nhs,Investigative Sciences & C S,Lloyds Retail Chemists Ltd,3094978,"2,372,827.74",Optional requirement only
Department of Health,Imperial College Healthcare NHS Trust,10/03/2015,Drugs Nhs,Investigative Sciences & C S,Lloyds Retail Chemists Ltd,3098995,"2,640,012.29",Optional requirement only
Department of Health,Imperial College Healthcare NHS Trust,10/03/2015,Drugs Nhs,Investigative Sciences & C S,Lloyds Retail Chemists Ltd,3098996,"2,158,394.30",Optional requirement only
Department of Health,Imperial College Healthcare NHS Trust,10/03/2015,Drugs Nhs,Investigative Sciences & C S,Lloyds Retail Chemists Ltd,3098997,"2,790,393.13",Optional requirement only
Department of Health,Imperial College Healthcare NHS Trust,24/03/2015,Drugs Nhs,Investigative Sciences & C S,Lloyds Retail Chemists Ltd,3102907,"2,535,503.55",Optional requirement only
Department of Health,Imperial College Healthcare NHS Trust,03/03/2015,Other Research Exp - Non-Pay,Rd Medical Directorate,London Ambulance Service Nhs Trust,3092378,"27,687.00",Optional requirement only
Department of Health,Imperial College Healthcare NHS Trust,03/03/2015,Other Research Exp - Non-Pay,Rd Medical Directorate,London Ambulance Service Nhs Trust,3092379,"27,687.00",Optional requirement only
Department of Health,Imperial College Healthcare NHS Trust,24/03/2015,Other Research Exp - Non-Pay,Rd Medical Directorate,London Ambulance Service Nhs Trust,3106513,"27,687.00",Optional requirement only
Department of Health,Imperial College Healthcare NHS Trust,05/03/2015,Gp Salaried Doctors,Division Of Medicine,London Central & West Unscheduled Care Collab,3098074,"43,928.56",Optional requirement only
Department of Health,Imperial College Healthcare NHS Trust,03/03/2015,Other Research Exp - Non-Pay,Rd Medical Directorate,London North West Healthcare Nhs Trust,3092917,"326,412.00",Optional requirement only
Department of Health,Imperial College Healthcare NHS Trust,26/03/2015,Other Research Exp - Non-Pay,Rd Medical Directorate,London North West Healthcare Nhs Trust,3108464,"326,413.00",Optional requirement only
Department of Health,Imperial College Healthcare NHS Trust,17/03/2015,Buildings-Additions-Purchased,Capital Summary,Me Construction Ltd,3092720,"356,828.40",Optional requirement only
Department of Health,Imperial College Healthcare NHS Trust,27/03/2015,Miscellaneous Expenditure,"Surg, Canc & Cardiovasc Div",Mediaviation Limited,3109191,"26,101.00",Optional requirement only
Department of Health,Imperial College Healthcare NHS Trust,02/03/2015,Sterile Products,Directorate Of Strategy,Medline Industries Limited,3095154,"40,387.91",Optional requirement only
Department of Health,Imperial College Healthcare NHS Trust,02/03/2015,Sterile Products,Directorate Of Strategy,Medline Industries Limited,3095156,"31,342.52",Optional requirement only
Department of Health,Imperial College Healthcare NHS Trust,10/03/2015,Creditor Accruals Nonnhs Trade,Stock Bulk Stock Park Royal,Medline Industries Limited,3099164,"27,152.14",Optional requirement only
Department of Health,Imperial College Healthcare NHS Trust,24/03/2015,P & M-Additions-Purchased,Capital Summary,Medspace Solutions Ltd,3105483,"71,642.51",Optional requirement only
Department of Health,Imperial College Healthcare NHS Trust,05/03/2015,Clinical Managed Service Contr,"Surg, Canc & Cardiovasc Div",Medtronic Ltd,3094702,"864,268.64",Optional requirement only
Department of Health,Imperial College Healthcare NHS Trust,10/03/2015,Clinical Managed Service Contr,"Surg, Canc & Cardiovasc Div",Medtronic Ltd,3099118,"825,443.22",Optional requirement only
Department of Health,Imperial College Healthcare NHS Trust,27/03/2015,Clinical Managed Service Contr,"Surg, Canc & Cardiovasc Div",Medtronic Ltd,3108455,"931,005.28",Optional requirement only
Department of Health,Imperial College Healthcare NHS Trust,24/03/2015,Other Research Exp - Non-Pay,Rd Medical Directorate,Multiple Sclerosis Trials Collaboration,3103032,"38,547.78",Optional requirement only
Department of Health,Imperial College Healthcare NHS Trust,24/03/2015,It Eqpt-Additions,Capital Summary,Ncc Group Plc T/A Ncc Services Ltd,3102676,"36,000.00",Optional requirement only
Department of Health,Imperial College Healthcare NHS Trust,03/03/2015,Blood Products,Investigative Sciences & C S,Nhs Blood And Transplant,3092343,"63,341.28",Optional requirement only
Department of Health,Imperial College Healthcare NHS Trust,03/03/2015,Blood Products,Investigative Sciences & C S,Nhs Blood And Transplant,3092346,"151,624.62",Optional requirement only
Department of Health,Imperial College Healthcare NHS Trust,03/03/2015,Blood Products,Investigative Sciences & C S,Nhs Blood And Transplant,3092347,"320,085.60",Optional requirement only
Department of Health,Imperial College Healthcare NHS Trust,24/03/2015,Blood Products,Investigative Sciences & C S,Nhs Blood And Transplant,3105540,"31,953.68",Optional requirement only
Department of Health,Imperial College Healthcare NHS Trust,03/03/2015,Fp10s,Investigative Sciences & C S,Nhs Business Services Authority,3094279,"37,359.48",Optional requirement only
Department of Health,Imperial College Healthcare NHS Trust,17/03/2015,Fp10s,Investigative Sciences & C S,Nhs Business Services Authority,3102906,"37,297.68",Optional requirement only
Department of Health,Imperial College Healthcare NHS Trust,09/03/2015,Cnst Contributions,Other Hq Departments,Nhs Litigation Authority,3099158,"1,617,295.80",Optional requirement only
Department of Health,Imperial College Healthcare NHS Trust,09/03/2015,Insurance Costs,Directorate Of Strategy,Nhs Litigation Authority,3099161,"45,940.50",Optional requirement only
Department of Health,Imperial College Healthcare NHS Trust,03/03/2015,Supplies Issues Recharges,Stock,Nhs Supply Chain,3094987,"146,229.56",Optional requirement only
Department of Health,Imperial College Healthcare NHS Trust,03/03/2015,Supplies Issues Recharges,Stock,Nhs Supply Chain,3094992,"104,112.06",Optional requirement only
Department of Health,Imperial College Healthcare NHS Trust,05/03/2015,F & F-Additions,Capital Summary,Nhs Supply Chain,3096643,"1,846,628.73",Optional requirement only
Department of Health,Imperial College Healthcare NHS Trust,05/03/2015,Supplies Issues Recharges,Stock,Nhs Supply Chain,3098081,"93,848.73",Optional requirement only
Department of Health,Imperial College Healthcare NHS Trust,24/03/2015,Supplies Issues Recharges,Stock,Nhs Supply Chain,3106697,"79,191.03",Optional requirement only
Department of Health,Imperial College Healthcare NHS Trust,24/03/2015,Supplies Issues Recharges,Stock,Nhs Supply Chain,3106703,"87,898.63",Optional requirement only
Department of Health,Imperial College Healthcare NHS Trust,24/03/2015,Supplies Issues Recharges,Stock,Nhs Supply Chain,3106704,"88,297.40",Optional requirement only
Department of Health,Imperial College Healthcare NHS Trust,26/03/2015,Supplies Issues Recharges,Stock,Nhs Supply Chain,3108057,"103,165.68",Optional requirement only
Department of Health,Imperial College Healthcare NHS Trust,26/03/2015,Supplies Issues Recharges,Stock,Nhs Supply Chain,3108058,"101,006.64",Optional requirement only
Department of Health,Imperial College Healthcare NHS Trust,26/03/2015,Supplies Issues Recharges,Stock,Nhs Supply Chain,3108059,"142,397.86",Optional requirement only
Department of Health,Imperial College Healthcare NHS Trust,26/03/2015,Supplies Issues Recharges,Stock,Nhs Supply Chain,3108060,"115,995.98",Optional requirement only
Department of Health,Imperial College Healthcare NHS Trust,26/03/2015,Supplies Issues Recharges,Stock,Nhs Supply Chain,3108061,"102,795.55",Optional requirement only
Department of Health,Imperial College Healthcare NHS Trust,26/03/2015,Supplies Issues Recharges,Stock,Nhs Supply Chain,3108062,"128,524.24",Optional requirement only
Department of Health,Imperial College Healthcare NHS Trust,26/03/2015,Supplies Issues Recharges,Stock,Nhs Supply Chain,3108064,"97,817.15",Optional requirement only
Department of Health,Imperial College Healthcare NHS Trust,12/03/2015,Electronic Salary Sacrifice,Electronic Salary Sacrifice Scheme,Northumbria Healthcare Nhs Foundation Trust,3098085,"29,542.85",Optional requirement only
Department of Health,Imperial College Healthcare NHS Trust,12/03/2015,Electronic Salary Sacrifice,Electronic Salary Sacrifice Scheme,Northumbria Healthcare Nhs Foundation Trust,3098089,"33,409.95",Optional requirement only
Department of Health,Imperial College Healthcare NHS Trust,05/03/2015,Electronic Salary Sacrifice,Electronic Salary Sacrifice Scheme,Northumbria Healthcare Nhs Foundation Trust,3098091,"29,100.12",Optional requirement only
Department of Health,Imperial College Healthcare NHS Trust,24/03/2015,Jac - Stock,Stock,Novartis Pharmaceutical (Uk) Ltd,3098583,"33,130.32",Optional requirement only
Department of Health,Imperial College Healthcare NHS Trust,24/03/2015,P & M-Additions-Purchased,Capital Summary,Olympus Keymed,3105492,"33,646.76",Optional requirement only
Department of Health,Imperial College Healthcare NHS Trust,12/03/2015,Interpreting Services,Investigative Sciences & C S,Pearl Linguistics Ltd,3100329,"31,519.85",Optional requirement only
Department of Health,Imperial College Healthcare NHS Trust,12/03/2015,Interpreting Services,Investigative Sciences & C S,Pearl Linguistics Ltd,3100330,"32,742.91",Optional requirement only
Department of Health,Imperial College Healthcare NHS Trust,17/03/2015,Interpreting Services,Investigative Sciences & C S,Pearl Linguistics Ltd,3102923,"33,086.00",Optional requirement only
Department of Health,Imperial College Healthcare NHS Trust,12/03/2015,It Eqpt-Additions,Capital Summary,Philips Healthcare,3100531,"193,843.44",Optional requirement only
Department of Health,Imperial College Healthcare NHS Trust,03/03/2015,Consultancy Fees,Press & Communications,Precedent Communications Ltd,3094412,"37,800.00",Optional requirement only
Department of Health,Imperial College Healthcare NHS Trust,24/03/2015,Buildings-Additions-Purchased,Capital Summary,Precision Lift Services Limited,3101109,"71,152.32",Optional requirement only
Department of Health,Imperial College Healthcare NHS Trust,24/03/2015,Buildings-Additions-Purchased,Capital Summary,Precision Lift Services Limited,3106201,"43,160.40",Optional requirement only
Department of Health,Imperial College Healthcare NHS Trust,10/03/2015,Agency Scient & Prof Qualified,Investigative Sciences & C S,Reed,3098952,"94,793.72",Optional requirement only
Department of Health,Imperial College Healthcare NHS Trust,10/03/2015,Agency Scient & Prof Qualified,Investigative Sciences & C S,Reed,3099116,"78,004.68",Optional requirement only
Department of Health,Imperial College Healthcare NHS Trust,10/03/2015,Agency Scient & Prof Qualified,"Surg, Canc & Cardiovasc Div",Reed,3099116,"33,115.55",Optional requirement only
Department of Health,Imperial College Healthcare NHS Trust,17/03/2015,Agency Nursing: Qualified,Division Of Medicine,Reed,3101166,"203,441.08",Optional requirement only
Department of Health,Imperial College Healthcare NHS Trust,17/03/2015,Agency Nursing: Qualified,Division Of Women And Children,Reed,3101166,"115,684.01",Optional requirement only
Department of Health,Imperial College Healthcare NHS Trust,17/03/2015,Bank Nurse : Qualified,Division Of Women And Children,Reed,3101166,"30,850.14",Optional requirement only
Department of Health,Imperial College Healthcare NHS Trust,17/03/2015,Agency Nursing: Qualified,Investigative Sciences & C S,Reed,3101166,"70,143.18",Optional requirement only
Department of Health,Imperial College Healthcare NHS Trust,17/03/2015,Bank Nurse : Qualified,Investigative Sciences & C S,Reed,3101166,"44,647.04",Optional requirement only
Department of Health,Imperial College Healthcare NHS Trust,17/03/2015,Agency Nursing: Qualified,Private Patients Directorate,Reed,3101166,"65,637.30",Optional requirement only
Department of Health,Imperial College Healthcare NHS Trust,17/03/2015,Agency Nursing: Qualified,"Surg, Canc & Cardiovasc Div",Reed,3101166,"133,794.04",Optional requirement only
Department of Health,Imperial College Healthcare NHS Trust,17/03/2015,Bank Nurse : Qualified,"Surg, Canc & Cardiovasc Div",Reed,3101166,"48,986.44",Optional requirement only
Department of Health,Imperial College Healthcare NHS Trust,17/03/2015,Agency Scient & Prof Qualified,Investigative Sciences & C S,Reed,3101746,"79,670.72",Optional requirement only
Department of Health,Imperial College Healthcare NHS Trust,24/03/2015,Agency Scient & Prof Qualified,Investigative Sciences & C S,Reed,3105182,"69,842.31",Optional requirement only
Department of Health,Imperial College Healthcare NHS Trust,03/03/2015,Chx Pharmacy Stock,Stock,Roche Products Ltd,3082691,"30,932.64",Optional requirement only
Department of Health,Imperial College Healthcare NHS Trust,17/03/2015,Chx Pharmacy Stock,Stock,Roche Products Ltd,3091422,"37,004.14",Optional requirement only
Department of Health,Imperial College Healthcare NHS Trust,12/03/2015,Hh Pharmacy Stock,Stock,Roche Products Ltd,3092318,"88,013.52",Optional requirement only
Department of Health,Imperial College Healthcare NHS Trust,24/03/2015,Jac - Stock,Stock,Roche Products Ltd,3096600,"65,282.76",Optional requirement only
Department of Health,Imperial College Healthcare NHS Trust,24/03/2015,Jac - Stock,Stock,Roche Products Ltd,3099806,"56,838.60",Optional requirement only
Department of Health,Imperial College Healthcare NHS Trust,24/03/2015,Isotopes,Investigative Sciences & C S,Siemens Healthcare Plc,3104553,"36,202.64",Optional requirement only
Department of Health,Imperial College Healthcare NHS Trust,12/03/2015,Ext Contr Domestics,Directorate Of Strategy,Sodexo Limited,3087293,"30,121.83",Optional requirement only
Department of Health,Imperial College Healthcare NHS Trust,12/03/2015,Ext Contr Catering,Directorate Of Strategy,Sodexo Limited,3087294,"35,870.38",Optional requirement only
Department of Health,Imperial College Healthcare NHS Trust,03/03/2015,Ext Contr Laundry,Directorate Of Strategy,Synergy Health Uk Ltd,3093609,"37,204.39",Optional requirement only
Department of Health,Imperial College Healthcare NHS Trust,03/03/2015,Ext Contr Laundry,Directorate Of Strategy,Synergy Health Uk Ltd,3093610,"47,787.28",Optional requirement only
Department of Health,Imperial College Healthcare NHS Trust,27/03/2015,Ext Contr Laundry,Directorate Of Strategy,Synergy Health Uk Ltd,3108441,"48,721.76",Optional requirement only
Department of Health,Imperial College Healthcare NHS Trust,27/03/2015,Ext Contr Laundry,Directorate Of Strategy,Synergy Health Uk Ltd,3108442,"39,128.32",Optional requirement only
Department of Health,Imperial College Healthcare NHS Trust,27/03/2015,Ext Contr Laundry,Directorate Of Strategy,Synergy Health Uk Ltd,3109049,"41,326.32",Optional requirement only
Department of Health,Imperial College Healthcare NHS Trust,27/03/2015,Ext Contr Laundry,Directorate Of Strategy,Synergy Health Uk Ltd,3109050,"41,326.32",Optional requirement only
Department of Health,Imperial College Healthcare NHS Trust,05/03/2015,Laboratory Chemicals/ Reagents,Investigative Sciences & C S,Sysmex Uk Ltd,3088384,"115,490.14",Optional requirement only
Department of Health,Imperial College Healthcare NHS Trust,24/03/2015,Buildings-Additions-Purchased,Capital Summary,T & B Contractors Ltd,3106396,"120,000.00",Optional requirement only
Department of Health,Imperial College Healthcare NHS Trust,24/03/2015,Buildings-Additions-Purchased,Capital Summary,T & B Contractors Ltd,3106776,"361,200.00",Optional requirement only
Department of Health,Imperial College Healthcare NHS Trust,24/03/2015,Buildings-Additions-Purchased,Capital Summary,Temple Lifts Ltd,3104547,"30,449.70",Optional requirement only
Department of Health,Imperial College Healthcare NHS Trust,05/03/2015,Thames Valley Housing Assoc,Housing Deductions,Thames Valley Charitable Housing,3097162,"102,640.56",Optional requirement only
Department of Health,Imperial College Healthcare NHS Trust,27/03/2015,Thames Valley Housing Assoc,Housing Deductions,Thames Valley Charitable Housing,3108430,"106,278.61",Optional requirement only
Department of Health,Imperial College Healthcare NHS Trust,31/03/2015,Audit Fees: Internal,Finance Directorate,Tiaa Ltd,3049281,"69,675.00",Optional requirement only
Department of Health,Imperial College Healthcare NHS Trust,12/03/2015,P & M-Additions-Purchased,Capital Summary,Vision Pharmaceuticals Ltd,3098204,"43,613.25",Optional requirement only
Department of Health,Imperial College Healthcare NHS Trust,24/03/2015,P & M-Additions-Purchased,Capital Summary,W.H. Bence (Coachworks) Ltd,3097865,"202,644.00",Optional requirement only
Department of Health,Imperial College Healthcare NHS Trust,24/03/2015,It Eqpt-Additions,Capital Summary,Waverley,3103981,"61,500.00",Optional requirement only
Department of Health,Imperial College Healthcare NHS Trust,24/03/2015,It Eqpt-Additions,Capital Summary,Waverley,3103982,"75,285.00",Optional requirement only
Department of Health,Imperial College Healthcare NHS Trust,10/03/2015,Services Received - Nhsts,Division Of Medicine,West London Mental Health Nhs Trust,3098890,"33,445.84",Optional requirement only
Department of Health,Imperial College Healthcare NHS Trust,17/03/2015,Services Received - Nhsts,Division Of Medicine,West London Mental Health Nhs Trust,3102489,"49,054.00",Optional requirement only
Department of Health,Imperial College Healthcare NHS Trust,24/03/2015,Other Research Exp - Non-Pay,Rd Medical Directorate,West London Mental Health Nhs Trust,3105427,"100,070.00",Optional requirement only
Department of Health,Imperial College Healthcare NHS Trust,03/03/2015,Nhs Pay Recharge In: Med,Division Of Medicine,West Middlesex University Hospital Nhs Trust,3095422,"176,864.00",Optional requirement only
,,,,,,Sum:,"52,513,290.50",
